[Event "*** SCC Grand Prix: Titled Tuesday Blitz"]
[Site "Chess.com"]
[Date "2020.07.14"]
[Round "9"]
[White "CzechmVIII"]
[Black "ErikRonka"]
[Result "0-1"]
[WhiteElo "2196"]
[BlackElo "2357"]
[TimeControl "180+1"]
[EndTime "11:47:38 PDT"]
[Termination "ErikRonka won by resignation"]

1. e4 {[%clk 0:03:00.9]} 1... e5 {[%clk 0:02:58.2]} 2. Nf3 {[%clk 0:03:00.8]}
2... Nf6 {[%clk 0:02:58.3]} 3. Nxe5 {[%clk 0:02:57.7]} 3... Nxe4 {[%clk
0:02:57.3]} 4. Qe2 {[%clk 0:02:55.9]} 4... Qe7 {[%clk 0:02:57.1]} 5. Qxe4 {[%clk
0:02:55.8]} 5... d6 {[%clk 0:02:57]} 6. d4 {[%clk 0:02:56]} 6... dxe5 {[%clk
0:02:56.9]} 7. dxe5 {[%clk 0:02:56.2]} 7... Nc6 {[%clk 0:02:36.2]} 8. Nc3 {[%clk
0:02:55.9]} 8... Qxe5 {[%clk 0:02:33]} 9. Qxe5+ {[%clk 0:02:56.1]} 9... Nxe5
{[%clk 0:02:33.9]} 10. Bf4 {[%clk 0:02:56.3]} 10... Bd6 {[%clk 0:02:27.4]} 11.
Bg3 {[%clk 0:02:56.4]} 11... Bf5 {[%clk 0:01:05]} 12. Nb5 {[%clk 0:02:31.6]}
12... O-O-O {[%clk 0:01:04.3]} 13. Nxd6+ {[%clk 0:02:31.2]} 13... Rxd6 {[%clk
0:01:04.5]} 14. Bxe5 {[%clk 0:02:21.4]} 14... Re8 {[%clk 0:01:04]} 15. f4 {[%clk
0:02:05.2]} 15... f6 {[%clk 0:01:03.7]} 16. Bb5 {[%clk 0:01:58.1]} 16... c6
{[%clk 0:01:00.8]} 17. O-O {[%clk 0:01:57.8]} 17... fxe5 {[%clk 0:00:59.7]} 18.
fxe5 {[%clk 0:01:55.6]} 18... Rxe5 {[%clk 0:00:59.5]} 19. Ba4 {[%clk 0:01:48.3]}
19... Bg6 {[%clk 0:00:27.2]} 20. Rfe1 {[%clk 0:01:18.2]} 20... Rde6 {[%clk
0:00:26]} 21. Rxe5 {[%clk 0:01:16.7]} 21... Rxe5 {[%clk 0:00:26.9]} 22. Kf2
{[%clk 0:01:13.8]} 22... Kc7 {[%clk 0:00:21.9]} 23. Re1 {[%clk 0:01:13]} 23...
Rxe1 {[%clk 0:00:17]} 24. Kxe1 {[%clk 0:01:13.9]} 24... Kd6 {[%clk 0:00:17.8]}
25. Kd2 {[%clk 0:01:13]} 25... Ke5 {[%clk 0:00:17.8]} 26. Bb3 {[%clk 0:01:12.9]}
26... b5 {[%clk 0:00:17.7]} 27. Ke3 {[%clk 0:01:12.2]} 27... c5 {[%clk
0:00:17.8]} 28. Bg8 {[%clk 0:01:11.6]} 28... Bxc2 {[%clk 0:00:16.2]} 29. a3
{[%clk 0:01:02.1]} 29... h6 {[%clk 0:00:16]} 30. g3 {[%clk 0:01:01.8]} 30... g5
{[%clk 0:00:13.9]} 31. Bf7 {[%clk 0:01:01.2]} 31... Bf5 {[%clk 0:00:13.4]} 32.
Be8 {[%clk 0:00:59.8]} 32... a6 {[%clk 0:00:13.2]} 33. Bc6 {[%clk 0:00:58.4]}
33... b4 {[%clk 0:00:10.5]} 34. axb4 {[%clk 0:00:56.8]} 34... cxb4 {[%clk
0:00:11.4]} 35. h4 {[%clk 0:00:56.8]} 35... a5 {[%clk 0:00:11.2]} 36. hxg5
{[%clk 0:00:55.8]} 36... hxg5 {[%clk 0:00:12.1]} 37. Bb5 {[%clk 0:00:50.8]}
37... Be6 {[%clk 0:00:11.9]} 38. Be8 {[%clk 0:00:46.2]} 38... Bb3 {[%clk
0:00:11.6]} 39. Bd7 {[%clk 0:00:45.4]} 39... a4 {[%clk 0:00:11.6]} 40. Kd3
{[%clk 0:00:37.9]} 40... a3 {[%clk 0:00:10.7]} 41. bxa3 {[%clk 0:00:38.2]} 41...
bxa3 {[%clk 0:00:11.6]} 42. Kc3 {[%clk 0:00:36.9]} 42... a2 {[%clk 0:00:10]} 43.
Kb2 {[%clk 0:00:36.3]} 43... Be6 {[%clk 0:00:09.9]} 44. Bb5 {[%clk 0:00:20.1]}
44... Kf5 {[%clk 0:00:09.4]} 45. Be2 {[%clk 0:00:20]} 45... Ke4 {[%clk
0:00:09.6]} 46. Bd1 {[%clk 0:00:19.8]} 46... Ke3 {[%clk 0:00:09.5]} 47. Bh5
{[%clk 0:00:19.5]} 47... Kf2 {[%clk 0:00:09.4]} 48. g4 {[%clk 0:00:17.6]} 48...
Kg3 {[%clk 0:00:09.3]} 49. Ka1 {[%clk 0:00:13.5]} 49... Bxg4 {[%clk 0:00:08.7]}
50. Bxg4 {[%clk 0:00:14.4]} 50... Kxg4 {[%clk 0:00:08.7]} 51. Kxa2 {[%clk
0:00:15.3]} 51... Kf3 {[%clk 0:00:09.5]} 52. Kb3 {[%clk 0:00:16.2]} 52... g4
{[%clk 0:00:10]} 53. Kc4 {[%clk 0:00:17.1]} 53... g3 {[%clk 0:00:09.8]} 54. Kd5
{[%clk 0:00:18]} 54... g2 {[%clk 0:00:10.7]} 55. Ke6 {[%clk 0:00:18.9]} 55...
g1=Q {[%clk 0:00:10.9]} 56. Kf6 {[%clk 0:00:19.8]} 56... Qe1 {[%clk 0:00:11.2]}
57. Kf7 {[%clk 0:00:20.7]} 57... Qe5 {[%clk 0:00:11.2]} 58. Kf8 {[%clk
0:00:21.6]} 58... Qc7 {[%clk 0:00:11.1]} 0-1

[Event "*** SCC Grand Prix: Titled Tuesday Blitz"]
[Site "Chess.com"]
[Date "2020.07.14"]
[Round "9"]
[White "Jaka_Brilej"]
[Black "natelleka"]
[Result "1-0"]
[WhiteElo "2335"]
[BlackElo "2136"]
[TimeControl "180+1"]
[EndTime "11:47:40 PDT"]
[Termination "Jaka_Brilej won on time"]

1. e4 {[%clk 0:03:00.9]} 1... e5 {[%clk 0:02:59.7]} 2. Nf3 {[%clk 0:03:00.4]}
2... Nf6 {[%clk 0:02:59.9]} 3. d4 {[%clk 0:02:58]} 3... Nxe4 {[%clk 0:02:59.6]}
4. Bd3 {[%clk 0:02:57.6]} 4... Nc6 {[%clk 0:02:58]} 5. Bxe4 {[%clk 0:02:57.1]}
5... d5 {[%clk 0:02:54.8]} 6. dxe5 {[%clk 0:02:51.2]} 6... dxe4 {[%clk
0:02:50.4]} 7. Qxd8+ {[%clk 0:02:50.9]} 7... Kxd8 {[%clk 0:02:31.9]} 8. Ng5
{[%clk 0:02:51.8]} 8... Nxe5 {[%clk 0:02:13.9]} 9. Bf4 {[%clk 0:02:50.2]} 9...
f6 {[%clk 0:02:05.1]} 10. Bxe5 {[%clk 0:02:45.1]} 10... fxg5 {[%clk 0:02:03.7]}
11. Nc3 {[%clk 0:02:45.3]} 11... Bf5 {[%clk 0:01:54.6]} 12. O-O-O+ {[%clk
0:02:41.4]} 12... Kc8 {[%clk 0:01:41.3]} 13. Rhe1 {[%clk 0:02:37.4]} 13... Bc5
{[%clk 0:01:00.5]} 14. Bd4 {[%clk 0:02:35.5]} 14... Bxd4 {[%clk 0:00:56]} 15.
Rxd4 {[%clk 0:02:36.4]} 15... Re8 {[%clk 0:00:49.8]} 16. Rd5 {[%clk 0:02:24.4]}
16... g6 {[%clk 0:00:48]} 17. Re3 {[%clk 0:01:54.8]} 17... c6 {[%clk 0:00:47.2]}
18. Rd4 {[%clk 0:01:54.7]} 18... Kc7 {[%clk 0:00:43.9]} 19. Nxe4 {[%clk
0:01:54.5]} 19... Bxe4 {[%clk 0:00:28.2]} 20. Rdxe4 {[%clk 0:01:55.4]} 20...
Rxe4 {[%clk 0:00:28.2]} 21. Rxe4 {[%clk 0:01:56.3]} 21... Kd6 {[%clk 0:00:28.7]}
22. Rg4 {[%clk 0:01:50.8]} 22... Rf8 {[%clk 0:00:26.5]} 23. f3 {[%clk
0:01:45.2]} 23... h6 {[%clk 0:00:26.2]} 24. h4 {[%clk 0:01:43.8]} 24... Rf5
{[%clk 0:00:23.2]} 25. hxg5 {[%clk 0:01:42.6]} 25... hxg5 {[%clk 0:00:23.3]} 26.
Kd2 {[%clk 0:01:42]} 26... Ke5 {[%clk 0:00:21.1]} 27. Ke3 {[%clk 0:01:41.6]}
27... Kf6 {[%clk 0:00:21.3]} 28. c4 {[%clk 0:01:38.2]} 28... Ra5 {[%clk
0:00:19.2]} 29. a3 {[%clk 0:01:35.3]} 29... Re5+ {[%clk 0:00:17.5]} 30. Kd3
{[%clk 0:01:28.7]} 30... Re1 {[%clk 0:00:16.7]} 31. Re4 {[%clk 0:01:26.2]} 31...
Rb1 {[%clk 0:00:14.2]} 32. Re2 {[%clk 0:01:21.5]} 32... Rd1+ {[%clk 0:00:13]}
33. Kc3 {[%clk 0:01:21.3]} 33... Rg1 {[%clk 0:00:10.6]} 34. Kd4 {[%clk
0:01:20.4]} 34... Rd1+ {[%clk 0:00:10.3]} 35. Kc5 {[%clk 0:01:17]} 35... Rc1
{[%clk 0:00:08]} 36. a4 {[%clk 0:01:06.3]} 36... Kf5 {[%clk 0:00:06.3]} 37. b4
{[%clk 0:01:05.4]} 37... Kf4 {[%clk 0:00:05.8]} 38. b5 {[%clk 0:01:05.2]} 38...
cxb5 {[%clk 0:00:04.7]} 39. axb5 {[%clk 0:01:05.1]} 39... g4 {[%clk 0:00:03.7]}
40. fxg4 {[%clk 0:01:03.6]} 40... Kxg4 {[%clk 0:00:04]} 41. Kd5 {[%clk
0:01:03.6]} 41... Kf4 {[%clk 0:00:04.1]} 42. c5 {[%clk 0:01:01.8]} 42... g5
{[%clk 0:00:03.7]} 43. c6 {[%clk 0:01:01.5]} 43... bxc6+ {[%clk 0:00:03.3]} 44.
bxc6 {[%clk 0:01:01.2]} 44... g4 {[%clk 0:00:02.5]} 45. Kd6 {[%clk 0:01:00.1]}
45... a5 {[%clk 0:00:02.6]} 46. c7 {[%clk 0:00:59.4]} 46... a4 {[%clk
0:00:02.5]} 47. Rd2 {[%clk 0:00:54.1]} 47... a3 {[%clk 0:00:02.1]} 48. Kd7
{[%clk 0:00:53.2]} 48... a2 {[%clk 0:00:02.4]} 49. Rxa2 {[%clk 0:00:52.3]} 49...
Rd1+ {[%clk 0:00:02.6]} 50. Kc8 {[%clk 0:00:45]} 50... Rc1 {[%clk 0:00:02.4]}
51. Ra4+ {[%clk 0:00:43.5]} 51... Kg3 {[%clk 0:00:02.2]} 52. Rb4 {[%clk
0:00:41.5]} 52... Kh4 {[%clk 0:00:01.6]} 53. Kb7 {[%clk 0:00:41]} 1-0

[Event "*** SCC Grand Prix: Titled Tuesday Blitz"]
[Site "Chess.com"]
[Date "2020.07.14"]
[Round "9"]
[White "AlexOstrovskiy"]
[Black "zajka-molotok"]
[Result "0-1"]
[WhiteElo "2597"]
[BlackElo "2432"]
[TimeControl "180+1"]
[EndTime "11:47:41 PDT"]
[Termination "zajka-molotok won by resignation"]

1. d4 {[%clk 0:03:00.9]} 1... d5 {[%clk 0:02:59.6]} 2. Bf4 {[%clk 0:02:41.5]}
2... Nf6 {[%clk 0:02:57.8]} 3. e3 {[%clk 0:02:41]} 3... e6 {[%clk 0:02:58]} 4.
Nd2 {[%clk 0:02:40.4]} 4... Bd6 {[%clk 0:02:57.6]} 5. Bg3 {[%clk 0:02:39.7]}
5... O-O {[%clk 0:02:55.4]} 6. Bd3 {[%clk 0:02:37.6]} 6... c5 {[%clk 0:02:52.8]}
7. c3 {[%clk 0:02:35.9]} 7... Qc7 {[%clk 0:02:51.3]} 8. Rc1 {[%clk 0:02:32.8]}
8... e5 {[%clk 0:02:43.3]} 9. dxe5 {[%clk 0:02:24.7]} 9... Bxe5 {[%clk
0:02:44.2]} 10. Ngf3 {[%clk 0:02:25]} 10... Bxg3 {[%clk 0:02:38.4]} 11. hxg3
{[%clk 0:02:25.9]} 11... h6 {[%clk 0:02:35]} 12. c4 {[%clk 0:02:22.9]} 12... d4
{[%clk 0:02:15.2]} 13. exd4 {[%clk 0:02:16.7]} 13... cxd4 {[%clk 0:02:09.6]} 14.
Nxd4 {[%clk 0:01:56.6]} 14... Qe5+ {[%clk 0:02:08]} 15. Ne2 {[%clk 0:01:55.4]}
15... Qxb2 {[%clk 0:02:04.3]} 16. Qb3 {[%clk 0:01:34.9]} 16... Qe5 {[%clk
0:01:56.8]} 17. Nf3 {[%clk 0:01:33.7]} 17... Qe7 {[%clk 0:01:55.3]} 18. O-O
{[%clk 0:01:28.2]} 18... Na6 {[%clk 0:01:52.1]} 19. Rfe1 {[%clk 0:01:20.4]}
19... Nc5 {[%clk 0:01:51.1]} 20. Qa3 {[%clk 0:01:20.6]} 20... b6 {[%clk
0:01:48.9]} 21. Nf4 {[%clk 0:01:17]} 21... Qc7 {[%clk 0:01:34.3]} 22. Nd5 {[%clk
0:01:03.8]} 22... Nxd5 {[%clk 0:01:21.9]} 23. cxd5 {[%clk 0:01:04.7]} 23... Bb7
{[%clk 0:01:21.8]} 24. Bc4 {[%clk 0:01:01]} 24... Qd6 {[%clk 0:01:13.8]} 25. Nd4
{[%clk 0:00:56.6]} 25... a6 {[%clk 0:01:04.6]} 26. Nf5 {[%clk 0:00:55.3]} 26...
Qf6 {[%clk 0:01:02.4]} 27. g4 {[%clk 0:00:45.2]} 27... Rfe8 {[%clk 0:00:51]} 28.
Re3 {[%clk 0:00:27.7]} 28... Rxe3 {[%clk 0:00:48.9]} 29. Qxe3 {[%clk 0:00:28.6]}
29... Rd8 {[%clk 0:00:43.4]} 30. d6 {[%clk 0:00:22.6]} 30... Be4 {[%clk
0:00:34.3]} 31. Ng3 {[%clk 0:00:15.3]} 31... Bg6 {[%clk 0:00:29.2]} 32. Rd1
{[%clk 0:00:05.6]} 32... Rxd6 {[%clk 0:00:28.8]} 33. Rxd6 {[%clk 0:00:04.7]}
33... Qxd6 {[%clk 0:00:29.7]} 34. Qe8+ {[%clk 0:00:03.5]} 34... Qf8 {[%clk
0:00:26.9]} 35. Qc6 {[%clk 0:00:02.7]} 35... b5 {[%clk 0:00:25.6]} 36. Bd5
{[%clk 0:00:02.2]} 36... Kh8 {[%clk 0:00:23.6]} 37. Kh2 {[%clk 0:00:01]} 37...
Qe7 {[%clk 0:00:22.9]} 38. Bf3 {[%clk 0:00:01.9]} 38... Qe5 {[%clk 0:00:19.9]}
39. Qa8+ {[%clk 0:00:01.2]} 39... Kh7 {[%clk 0:00:19.5]} 40. Kg1 {[%clk
0:00:02.1]} 40... Qd4 {[%clk 0:00:18.3]} 41. Kh2 {[%clk 0:00:01.9]} 41... Qxf2
{[%clk 0:00:17.5]} 42. Qc6 {[%clk 0:00:02.3]} 42... Qd4 {[%clk 0:00:16.9]} 43.
Nf5 {[%clk 0:00:02.6]} 43... Bxf5 {[%clk 0:00:16.2]} 44. gxf5 {[%clk 0:00:03.5]}
44... Qe5+ {[%clk 0:00:16.2]} 45. Kg1 {[%clk 0:00:03.8]} 45... Qxf5 {[%clk
0:00:16.4]} 46. Qc7 {[%clk 0:00:03.9]} 46... Qg5 {[%clk 0:00:15.6]} 47. Kh2
{[%clk 0:00:02.6]} 47... f6 {[%clk 0:00:14.7]} 48. Kg1 {[%clk 0:00:03]} 48...
Qe3+ {[%clk 0:00:13.9]} 49. Kh2 {[%clk 0:00:02.7]} 49... Qe5+ {[%clk 0:00:14.2]}
50. Kg1 {[%clk 0:00:02.1]} 50... Qxc7 {[%clk 0:00:13.7]} 0-1

[Event "*** SCC Grand Prix: Titled Tuesday Blitz"]
[Site "Chess.com"]
[Date "2020.07.14"]
[Round "9"]
[White "Sjakkerntobi"]
[Black "chito89"]
[Result "1-0"]
[WhiteElo "2423"]
[BlackElo "2789"]
[TimeControl "180+1"]
[EndTime "11:47:43 PDT"]
[Termination "Sjakkerntobi won by resignation"]

1. e4 {[%clk 0:03:00.9]} 1... Nc6 {[%clk 0:02:59.3]} 2. d4 {[%clk 0:03:00.4]}
2... e5 {[%clk 0:02:58.6]} 3. Nf3 {[%clk 0:02:57.1]} 3... exd4 {[%clk
0:02:55.6]} 4. Bc4 {[%clk 0:02:54.5]} 4... Nf6 {[%clk 0:02:54.8]} 5. e5 {[%clk
0:02:54.7]} 5... d5 {[%clk 0:02:39]} 6. Bb5 {[%clk 0:02:54.6]} 6... Ne4 {[%clk
0:02:38.8]} 7. Nxd4 {[%clk 0:02:54.9]} 7... Bd7 {[%clk 0:02:39.2]} 8. Bxc6
{[%clk 0:02:55.5]} 8... bxc6 {[%clk 0:02:39.5]} 9. O-O {[%clk 0:02:55.4]} 9...
Be7 {[%clk 0:02:34.1]} 10. f3 {[%clk 0:02:54.1]} 10... Nc5 {[%clk 0:02:32.7]}
11. f4 {[%clk 0:02:53.1]} 11... f5 {[%clk 0:02:25]} 12. b4 {[%clk 0:02:19.5]}
12... Ne4 {[%clk 0:02:18.4]} 13. e6 {[%clk 0:02:17.9]} 13... Bc8 {[%clk
0:01:52.8]} 14. Nxc6 {[%clk 0:01:59]} 14... Qd6 {[%clk 0:01:52]} 15. Nxe7 {[%clk
0:01:59.3]} 15... Qb6+ {[%clk 0:01:49.2]} 16. Kh1 {[%clk 0:01:54.7]} 16... Kxe7
{[%clk 0:01:49.7]} 17. Qf3 {[%clk 0:01:18.7]} 17... Ba6 {[%clk 0:01:37.3]} 18.
Be3 {[%clk 0:01:17.4]} 18... d4 {[%clk 0:01:36]} 19. Rd1 {[%clk 0:01:10.8]}
19... dxe3 {[%clk 0:01:00.8]} 20. Nc3 {[%clk 0:01:09.1]} 20... Rad8 {[%clk
0:00:41.9]} 21. Qh5 {[%clk 0:00:38.6]} 21... Nf2+ {[%clk 0:00:24.4]} 22. Kg1
{[%clk 0:00:37.7]} 22... Qxe6 {[%clk 0:00:19.3]} 23. Qg5+ {[%clk 0:00:17.4]}
23... Qf6 {[%clk 0:00:19.6]} 24. Nd5+ {[%clk 0:00:17.4]} 24... Rxd5 {[%clk
0:00:20.2]} 25. Qxf6+ {[%clk 0:00:18]} 25... Kxf6 {[%clk 0:00:18.5]} 26. Rxd5
{[%clk 0:00:18.3]} 26... Re8 {[%clk 0:00:15.3]} 27. Re1 {[%clk 0:00:16.8]} 27...
Re7 {[%clk 0:00:08.7]} 28. b5 {[%clk 0:00:15]} 28... Bb7 {[%clk 0:00:07.9]} 29.
Rc5 {[%clk 0:00:14.8]} 29... Ne4 {[%clk 0:00:07.6]} 30. Re5 {[%clk 0:00:08.6]}
30... Rxe5 {[%clk 0:00:06.8]} 31. fxe5+ {[%clk 0:00:09.5]} 31... Kxe5 {[%clk
0:00:07.7]} 32. Rxe3 {[%clk 0:00:10.4]} 32... Bd5 {[%clk 0:00:07.3]} 33. Ra3
{[%clk 0:00:10.3]} 33... Nd6 {[%clk 0:00:07.6]} 34. Rxa7 {[%clk 0:00:10.3]}
34... Nxb5 {[%clk 0:00:08.3]} 35. Ra5 {[%clk 0:00:08.9]} 35... c6 {[%clk
0:00:06.7]} 36. a4 {[%clk 0:00:07.8]} 36... Nc3 {[%clk 0:00:07.1]} 37. Rc5
{[%clk 0:00:06.7]} 37... Kd4 {[%clk 0:00:07.4]} 38. Ra5 {[%clk 0:00:07]} 38...
f4 {[%clk 0:00:06.5]} 39. Ra7 {[%clk 0:00:07.1]} 39... g5 {[%clk 0:00:06.9]} 40.
a5 {[%clk 0:00:07.6]} 40... g4 {[%clk 0:00:06.7]} 41. a6 {[%clk 0:00:07.7]}
41... f3 {[%clk 0:00:05.9]} 42. gxf3 {[%clk 0:00:08.2]} 42... gxf3 {[%clk
0:00:06.8]} 43. Rf7 {[%clk 0:00:06.5]} 43... Ne4 {[%clk 0:00:07.4]} 44. Rxf3
{[%clk 0:00:05.6]} 44... Ng5 {[%clk 0:00:05.4]} 45. Rd3+ {[%clk 0:00:05.7]}
45... Kc5 {[%clk 0:00:05.5]} 46. Rxd5+ {[%clk 0:00:04.7]} 1-0

[Event "*** SCC Grand Prix: Titled Tuesday Blitz"]
[Site "Chess.com"]
[Date "2020.07.14"]
[Round "9"]
[White "alexsergeyev"]
[Black "andrzej"]
[Result "1-0"]
[WhiteElo "2349"]
[BlackElo "2203"]
[TimeControl "180+1"]
[EndTime "11:47:44 PDT"]
[Termination "alexsergeyev won by checkmate"]

1. d4 {[%clk 0:03:00.9]} 1... Nf6 {[%clk 0:02:59.5]} 2. c4 {[%clk 0:03:00.5]}
2... e6 {[%clk 0:02:59.7]} 3. Nf3 {[%clk 0:02:59.5]} 3... b6 {[%clk 0:03:00.1]}
4. g3 {[%clk 0:02:58.4]} 4... Bb7 {[%clk 0:03:00.6]} 5. Bg2 {[%clk 0:02:58.4]}
5... c5 {[%clk 0:03:00.9]} 6. O-O {[%clk 0:02:57.6]} 6... cxd4 {[%clk
0:03:00.9]} 7. Qxd4 {[%clk 0:02:50.1]} 7... Nc6 {[%clk 0:03:00.8]} 8. Qf4 {[%clk
0:02:49.1]} 8... Ne7 {[%clk 0:03:00.6]} 9. Nc3 {[%clk 0:02:38.8]} 9... Ng6
{[%clk 0:03:00.2]} 10. Qd2 {[%clk 0:02:37.2]} 10... Rc8 {[%clk 0:03:00]} 11. b3
{[%clk 0:02:36.5]} 11... d5 {[%clk 0:02:58.1]} 12. Rd1 {[%clk 0:02:04.3]} 12...
dxc4 {[%clk 0:02:44.3]} 13. Qxd8+ {[%clk 0:01:59.8]} 13... Rxd8 {[%clk
0:02:45.2]} 14. Rxd8+ {[%clk 0:01:54.7]} 14... Kxd8 {[%clk 0:02:46.1]} 15. bxc4
{[%clk 0:01:51.1]} 15... Bc5 {[%clk 0:02:45.5]} 16. Na4 {[%clk 0:01:43.4]} 16...
Bd6 {[%clk 0:02:36.4]} 17. Bb2 {[%clk 0:01:39]} 17... Ke7 {[%clk 0:02:35.3]} 18.
Nd4 {[%clk 0:01:31.2]} 18... Bxg2 {[%clk 0:02:32.2]} 19. Kxg2 {[%clk 0:01:31.4]}
19... Rc8 {[%clk 0:02:31.1]} 20. Rc1 {[%clk 0:01:26.5]} 20... Ne5 {[%clk
0:02:23.7]} 21. Nb5 {[%clk 0:01:22.1]} 21... Rxc4 {[%clk 0:02:05.4]} 22. Rxc4
{[%clk 0:01:07]} 22... Nxc4 {[%clk 0:02:06.3]} 23. Nxa7 {[%clk 0:00:58.8]} 23...
Nd5 {[%clk 0:01:19.5]} 24. Bxg7 {[%clk 0:00:48.2]} 24... f6 {[%clk 0:01:12.2]}
25. Bh6 {[%clk 0:00:45.2]} 25... Nb4 {[%clk 0:00:57]} 26. Nc8+ {[%clk
0:00:38.1]} 26... Kd7 {[%clk 0:00:51.7]} 27. Ncxb6+ {[%clk 0:00:38.4]} 27...
Nxb6 {[%clk 0:00:48.2]} 28. Nxb6+ {[%clk 0:00:38.8]} 28... Kc6 {[%clk
0:00:48.6]} 29. Nc4 {[%clk 0:00:37.2]} 29... Nxa2 {[%clk 0:00:46]} 30. Nxd6
{[%clk 0:00:37.1]} 30... Kxd6 {[%clk 0:00:46.9]} 31. Bd2 {[%clk 0:00:36.7]}
31... Kd5 {[%clk 0:00:44.8]} 32. Kf3 {[%clk 0:00:35.6]} 32... Kc4 {[%clk
0:00:31]} 33. Ke4 {[%clk 0:00:34.9]} 33... Kb3 {[%clk 0:00:29.8]} 34. g4 {[%clk
0:00:30.9]} 34... Kc2 {[%clk 0:00:29.9]} 35. Ke3 {[%clk 0:00:28.9]} 35... Kd1
{[%clk 0:00:24.2]} 36. f4 {[%clk 0:00:25.3]} 36... Kc2 {[%clk 0:00:24]} 37. h4
{[%clk 0:00:24.2]} 37... h6 {[%clk 0:00:22.6]} 38. g5 {[%clk 0:00:23.5]} 38...
fxg5 {[%clk 0:00:22.7]} 39. fxg5 {[%clk 0:00:23]} 39... hxg5 {[%clk 0:00:22.7]}
40. hxg5 {[%clk 0:00:22.8]} 40... e5 {[%clk 0:00:13.4]} 41. g6 {[%clk
0:00:22.4]} 41... Nc3 {[%clk 0:00:11.8]} 42. Bxc3 {[%clk 0:00:21.3]} 42... Kxc3
{[%clk 0:00:12.7]} 43. g7 {[%clk 0:00:21.4]} 43... e4 {[%clk 0:00:13]} 44. Kxe4
{[%clk 0:00:19.7]} 44... Kc2 {[%clk 0:00:13.9]} 45. g8=Q {[%clk 0:00:20]} 45...
Kd1 {[%clk 0:00:14.5]} 46. Qa2 {[%clk 0:00:18.7]} 46... Ke1 {[%clk 0:00:15.4]}
47. Kf3 {[%clk 0:00:18.4]} 47... Kd1 {[%clk 0:00:15.2]} 48. e4 {[%clk
0:00:18.2]} 48... Kc1 {[%clk 0:00:14.6]} 49. Ke3 {[%clk 0:00:17.9]} 49... Kd1
{[%clk 0:00:15.4]} 50. Qb1# {[%clk 0:00:18.2]} 1-0

[Event "*** SCC Grand Prix: Titled Tuesday Blitz"]
[Site "Chess.com"]
[Date "2020.07.14"]
[Round "9"]
[White "Kolle05"]
[Black "JoliyRoger"]
[Result "0-1"]
[WhiteElo "2366"]
[BlackElo "2289"]
[TimeControl "180+1"]
[EndTime "11:47:45 PDT"]
[Termination "JoliyRoger won on time"]

1. e4 {[%clk 0:03:00.9]} 1... c6 {[%clk 0:03:00.1]} 2. Nf3 {[%clk 0:03:00.2]}
2... d5 {[%clk 0:03:01]} 3. Nc3 {[%clk 0:03:00.5]} 3... Nf6 {[%clk 0:03:01.3]}
4. e5 {[%clk 0:02:59.6]} 4... Ne4 {[%clk 0:03:01.7]} 5. Ne2 {[%clk 0:02:59.7]}
5... e6 {[%clk 0:03:01.2]} 6. d3 {[%clk 0:02:54.7]} 6... Nc5 {[%clk 0:03:01.5]}
7. d4 {[%clk 0:02:55.1]} 7... Ncd7 {[%clk 0:03:01.9]} 8. Ng3 {[%clk 0:02:53.5]}
8... b6 {[%clk 0:03:02.1]} 9. Bd3 {[%clk 0:02:48.7]} 9... Ba6 {[%clk 0:03:02.3]}
10. O-O {[%clk 0:02:49.2]} 10... c5 {[%clk 0:02:57.4]} 11. c3 {[%clk 0:02:46.6]}
11... Be7 {[%clk 0:02:50.4]} 12. Nh5 {[%clk 0:02:27.6]} 12... O-O {[%clk
0:02:47]} 13. Ne1 {[%clk 0:02:15.3]} 13... cxd4 {[%clk 0:02:22.8]} 14. cxd4
{[%clk 0:02:08.9]} 14... Bxd3 {[%clk 0:02:21.7]} 15. Nxd3 {[%clk 0:02:03]} 15...
Nc6 {[%clk 0:02:21.3]} 16. Be3 {[%clk 0:02:02.5]} 16... g6 {[%clk 0:02:18.9]}
17. Ng3 {[%clk 0:01:54.2]} 17... Rc8 {[%clk 0:02:18.6]} 18. f4 {[%clk
0:01:52.5]} 18... Re8 {[%clk 0:02:08.2]} 19. Ne2 {[%clk 0:01:49.6]} 19... f5
{[%clk 0:01:50.6]} 20. exf6 {[%clk 0:01:39.5]} 20... Nxf6 {[%clk 0:01:49.1]} 21.
Nc3 {[%clk 0:01:35.3]} 21... Nb4 {[%clk 0:01:39.4]} 22. Ne5 {[%clk 0:01:28.4]}
22... Bd6 {[%clk 0:01:32.8]} 23. Rc1 {[%clk 0:01:08.4]} 23... a6 {[%clk
0:01:27.2]} 24. a3 {[%clk 0:01:06.4]} 24... Nc6 {[%clk 0:01:26.8]} 25. Qd3
{[%clk 0:01:06.2]} 25... b5 {[%clk 0:01:20.6]} 26. Rf3 {[%clk 0:00:49.4]} 26...
Ne7 {[%clk 0:01:17.1]} 27. h3 {[%clk 0:00:35.5]} 27... b4 {[%clk 0:01:16.5]} 28.
axb4 {[%clk 0:00:33]} 28... Bxb4 {[%clk 0:01:16.9]} 29. Qxa6 {[%clk 0:00:31]}
29... Nf5 {[%clk 0:01:16.9]} 30. g4 {[%clk 0:00:23.8]} 30... Bxc3 {[%clk
0:00:25.9]} 31. Rxc3 {[%clk 0:00:17.4]} 31... Rxc3 {[%clk 0:00:23.2]} 32. bxc3
{[%clk 0:00:18.3]} 32... Nd6 {[%clk 0:00:22.6]} 33. Bc1 {[%clk 0:00:17.6]} 33...
Nfe4 {[%clk 0:00:20.7]} 34. Ba3 {[%clk 0:00:15.5]} 34... Nf7 {[%clk 0:00:17.8]}
35. Qb7 {[%clk 0:00:09.4]} 35... Nxe5 {[%clk 0:00:12.7]} 36. fxe5 {[%clk
0:00:10.3]} 36... Ng5 {[%clk 0:00:13.1]} 37. Rf6 {[%clk 0:00:02.9]} 37... Qc8
{[%clk 0:00:12.4]} 38. Qxc8 {[%clk 0:00:01.9]} 38... Rxc8 {[%clk 0:00:12.3]} 39.
Bb4 {[%clk 0:00:02]} 39... Re8 {[%clk 0:00:09.3]} 40. h4 {[%clk 0:00:01.8]}
40... Ne4 {[%clk 0:00:08.5]} 41. Rf1 {[%clk 0:00:01.9]} 41... Nd2 {[%clk
0:00:05.7]} 42. Rd1 {[%clk 0:00:01.1]} 42... Nc4 {[%clk 0:00:06.3]} 0-1